[Event "Titled Tuesday Blitz July 18 Early 2023"]
[White "Peiris, T G M"]
[Black "Tanmay Jain"]
[WhiteFideId "9901310"]
[BlackFideId "45015481"]
[WhiteElo "2282"]
[BlackElo "2446"]
[Result "0-1"]
[Round "8"]
[TimeControl "180+2"]
[Date "2023.07.18"]
[WhiteClock "0:00:28"]
[BlackClock "0:00:45"]
[Board "127"]

1. e4 {[%clk 0:03:00]}  g6 {[%clk 0:02:46]} 2. Nc3 {[%clk 0:02:49]}  Bg7 {[%clk 0:02:42]} 3. f4 {[%clk 0:02:45]}  d6 {[%clk 0:02:39]} 4. Nf3 {[%clk 0:02:45]}  c5 {[%clk 0:02:38]} 5. Bc4 {[%clk 0:02:43]}  e6 {[%clk 0:02:37]} 6. d3 {[%clk 0:02:40]}  Ne7 {[%clk 0:02:37]} 7. a3 {[%clk 0:02:38]}  O-O {[%clk 0:02:37]} 8. Ba2 {[%clk 0:02:34]}  Nbc6 {[%clk 0:02:30]} 9. O-O {[%clk 0:02:34]}  b6 {[%clk 0:02:28]} 10. Qe1 {[%clk 0:02:34]}  Bb7 {[%clk 0:02:28]} 11. Be3 {[%clk 0:02:28]}  d5 {[%clk 0:02:28]} 12. Bf2 {[%clk 0:02:17]}  Qd7 {[%clk 0:02:16]} 13. Rd1 {[%clk 0:02:16]}  Rae8 {[%clk 0:02:13]} 14. Kh1 {[%clk 0:02:17]}  Nd4 {[%clk 0:02:04]} 15. Bb1 {[%clk 0:02:12]}  Nxf3 {[%clk 0:01:58]} 16. gxf3 {[%clk 0:02:12]}  f5 {[%clk 0:01:55]} 17. Bg3 {[%clk 0:01:41]}  Qc7 {[%clk 0:01:12]} 18. h4 {[%clk 0:01:22]}  d4 {[%clk 0:01:06]} 19. Ne2 {[%clk 0:01:12]}  fxe4 {[%clk 0:01:05]} 20. fxe4 {[%clk 0:01:12]}  Nf5 {[%clk 0:01:04]} 21. Kh2 {[%clk 0:01:07]}  Ne3 {[%clk 0:01:01]} 22. Rc1 {[%clk 0:01:04]}  Nxf1+ {[%clk 0:00:53]} 23. Qxf1 {[%clk 0:01:05]}  e5 {[%clk 0:00:50]} 24. Ba2+ {[%clk 0:01:02]}  Kh8 {[%clk 0:00:50]} 25. f5 {[%clk 0:00:38]}  gxf5 {[%clk 0:00:48]} 26. exf5 {[%clk 0:00:39]}  Qc8 {[%clk 0:00:47]} 27. Be6 {[%clk 0:00:36]}  Rxe6 {[%clk 0:00:46]} 28. fxe6 {[%clk 0:00:36]}  Rxf1 {[%clk 0:00:45]} 29. Rxf1 {[%clk 0:00:28]}  Qxe6 {[%clk 0:00:45]} 0-1


[Site "https://www.chess.com"]

[Event "Titled Tuesday Blitz July 18 Early 2023"]
[White "Karthik, Advaith"]
[Black "Levitan, Ronit"]
[WhiteFideId "30946050"]
[BlackFideId "2815109"]
[WhiteElo "2437"]
[BlackElo "2257"]
[Result "1-0"]
[Round "8"]
[TimeControl "180+2"]
[Date "2023.07.18"]
[WhiteClock "0:02:01"]
[BlackClock "0:00:32"]
[Board "130"]

1. e4 {[%clk 0:03:00]}  e5 {[%clk 0:02:59]} 2. Nf3 {[%clk 0:03:00]}  Nc6 {[%clk 0:02:59]} 3. Bc4 {[%clk 0:03:00]}  Bc5 {[%clk 0:02:59]} 4. d3 {[%clk 0:03:00]}  Nf6 {[%clk 0:02:57]} 5. O-O {[%clk 0:03:00]}  d6 {[%clk 0:02:56]} 6. h3 {[%clk 0:03:00]}  h6 {[%clk 0:02:55]} 7. a3 {[%clk 0:02:59]}  O-O {[%clk 0:02:55]} 8. Re1 {[%clk 0:02:59]}  a5 {[%clk 0:02:54]} 9. Nbd2 {[%clk 0:02:59]}  Ne7 {[%clk 0:02:52]} 10. Ba2 {[%clk 0:02:57]}  Ng6 {[%clk 0:02:52]} 11. Nf1 {[%clk 0:02:57]}  Be6 {[%clk 0:02:51]} 12. Be3 {[%clk 0:02:54]}  Bxe3 {[%clk 0:02:29]} 13. fxe3 {[%clk 0:02:50]}  Qd7 {[%clk 0:02:26]} 14. Ng3 {[%clk 0:02:46]}  b5 {[%clk 0:01:51]} 15. Rf1 {[%clk 0:02:41]}  c5 {[%clk 0:01:49]} 16. Nd2 {[%clk 0:02:28]}  Nh4 {[%clk 0:01:29]} 17. Nf3 {[%clk 0:02:21]}  Ng6 {[%clk 0:01:27]} 18. Nd2 {[%clk 0:02:12]}  Nh4 {[%clk 0:01:25]} 19. Rxf6 {[%clk 0:02:10]}  gxf6 {[%clk 0:01:23]} 20. Qh5 {[%clk 0:02:10]}  Ng6 {[%clk 0:01:07]} 21. Qxh6 {[%clk 0:02:11]}  Bxh3 {[%clk 0:00:41]} 22. Qxg6+ {[%clk 0:02:09]}  Kh8 {[%clk 0:00:40]} 23. Qh6+ {[%clk 0:02:09]}  Kg8 {[%clk 0:00:40]} 24. Qxh3 {[%clk 0:02:09]}  Qxh3 {[%clk 0:00:40]} 25. gxh3 {[%clk 0:02:09]}  Kg7 {[%clk 0:00:39]} 26. Nf5+ {[%clk 0:02:08]}  Kg6 {[%clk 0:00:38]} 27. Kh2 {[%clk 0:02:07]}  b4 {[%clk 0:00:38]} 28. Rg1+ {[%clk 0:02:06]}  Kh5 {[%clk 0:00:38]} 29. a4 {[%clk 0:02:02]}  Rg8 {[%clk 0:00:32]} 30. Bxf7+ {[%clk 0:02:01]} 1-0


[Site "https://www.chess.com"]

[Event "Titled Tuesday Blitz July 18 Early 2023"]
[White "Herman, Daniel"]
[Black "Samarth J Rao"]
[WhiteFideId "30935008"]
[BlackFideId "46652370"]
[WhiteElo "2434"]
[BlackElo "2274"]
[Result "0-1"]
[Round "8"]
[TimeControl "180+2"]
[Date "2023.07.18"]
[WhiteClock "0:00:09"]
[BlackClock "0:00:36"]
[Board "131"]

1. c4 {[%clk 0:03:00]}  e5 {[%clk 0:02:42]} 2. g3 {[%clk 0:02:59]}  Nf6 {[%clk 0:02:40]} 3. Bg2 {[%clk 0:02:59]}  Nc6 {[%clk 0:02:37]} 4. Nc3 {[%clk 0:02:58]}  Bb4 {[%clk 0:02:36]} 5. Nd5 {[%clk 0:02:56]}  O-O {[%clk 0:02:34]} 6. Nxb4 {[%clk 0:02:52]}  Nxb4 {[%clk 0:02:35]} 7. a3 {[%clk 0:02:51]}  Nc6 {[%clk 0:02:34]} 8. d3 {[%clk 0:02:49]}  d5 {[%clk 0:02:34]} 9. cxd5 {[%clk 0:02:48]}  Nxd5 {[%clk 0:02:35]} 10. Nf3 {[%clk 0:02:47]}  Re8 {[%clk 0:02:35]} 11. O-O {[%clk 0:02:46]}  f6 {[%clk 0:02:36]} 12. Bd2 {[%clk 0:02:39]}  Bg4 {[%clk 0:02:35]} 13. Qb3 {[%clk 0:02:28]}  Rb8 {[%clk 0:02:12]} 14. e4 {[%clk 0:02:10]}  Bxf3 {[%clk 0:01:57]} 15. Bxf3 {[%clk 0:01:46]}  Nd4 {[%clk 0:01:56]} 16. Qd1 {[%clk 0:01:47]}  Ne7 {[%clk 0:01:55]} 17. Bg4 {[%clk 0:01:42]}  g6 {[%clk 0:01:54]} 18. f4 {[%clk 0:01:33]}  Nec6 {[%clk 0:01:52]} 19. Rc1 {[%clk 0:01:18]}  h5 {[%clk 0:01:47]} 20. Bh3 {[%clk 0:01:16]}  Kg7 {[%clk 0:01:44]} 21. f5 {[%clk 0:01:12]}  gxf5 {[%clk 0:01:37]} 22. Bxf5 {[%clk 0:01:02]}  Rh8 {[%clk 0:01:34]} 23. Be3 {[%clk 0:00:51]}  Nxf5 {[%clk 0:01:28]} 24. Rxf5 {[%clk 0:00:52]}  Ne7 {[%clk 0:01:26]} 25. Rxh5 {[%clk 0:00:44]}  Rxh5 {[%clk 0:01:23]} 26. Qxh5 {[%clk 0:00:45]}  Qxd3 {[%clk 0:01:20]} 27. Bh6+ {[%clk 0:00:29]}  Kg8 {[%clk 0:01:20]} 28. Qg4+ {[%clk 0:00:28]}  Kf7 {[%clk 0:01:20]} 29. Rxc7 {[%clk 0:00:18]}  Qb1+ {[%clk 0:00:57]} 30. Kg2 {[%clk 0:00:17]}  Qxb2+ {[%clk 0:00:57]} 31. Kh3 {[%clk 0:00:18]}  Qxa3 {[%clk 0:00:48]} 32. Qg7+ {[%clk 0:00:16]}  Ke6 {[%clk 0:00:49]} 33. Bc1 {[%clk 0:00:14]}  Qd6 {[%clk 0:00:44]} 34. Rc2 {[%clk 0:00:14]}  Rg8 {[%clk 0:00:43]} 35. Qh7 {[%clk 0:00:13]}  Qd1 {[%clk 0:00:40]} 36. Rc7 {[%clk 0:00:11]}  Qf1+ {[%clk 0:00:35]} 37. Kh4 {[%clk 0:00:10]}  Ng6+ {[%clk 0:00:35]} 38. Kh5 {[%clk 0:00:09]}  Qh3# {[%clk 0:00:36]} 0-1


[Site "https://www.chess.com"]

[Event "Titled Tuesday Blitz July 18 Early 2023"]
[White "Vaglio Munoz, Jaime"]
[Black "Baches Garcia, Guillermo"]
[WhiteFideId "6500145"]
[BlackFideId "2209764"]
[WhiteElo "2255"]
[BlackElo "2433"]
[Result "1/2-1/2"]
[Round "8"]
[TimeControl "180+2"]
[Date "2023.07.18"]
[WhiteClock "0:00:42"]
[BlackClock "0:00:21"]
[Board "132"]

1. Nf3 {[%clk 0:03:00]}  d5 {[%clk 0:02:59]} 2. c4 {[%clk 0:03:01]}  e6 {[%clk 0:02:59]} 3. b3 {[%clk 0:03:00]}  Nf6 {[%clk 0:02:58]} 4. Bb2 {[%clk 0:03:00]}  Be7 {[%clk 0:02:57]} 5. g3 {[%clk 0:03:00]}  O-O {[%clk 0:02:56]} 6. Bg2 {[%clk 0:03:00]}  b6 {[%clk 0:02:53]} 7. cxd5 {[%clk 0:02:59]}  exd5 {[%clk 0:02:53]} 8. O-O {[%clk 0:02:58]}  Bb7 {[%clk 0:02:49]} 9. d3 {[%clk 0:02:58]}  c5 {[%clk 0:02:47]} 10. Re1 {[%clk 0:02:57]}  d4 {[%clk 0:02:41]} 11. Nbd2 {[%clk 0:02:53]}  Nc6 {[%clk 0:02:35]} 12. a3 {[%clk 0:02:46]}  a5 {[%clk 0:02:34]} 13. Rc1 {[%clk 0:02:45]}  Qc7 {[%clk 0:02:27]} 14. Ng5 {[%clk 0:02:43]}  Rfe8 {[%clk 0:02:24]} 15. Rc2 {[%clk 0:02:32]}  Rad8 {[%clk 0:02:17]} 16. Qc1 {[%clk 0:02:32]}  Nd5 {[%clk 0:02:10]} 17. Ngf3 {[%clk 0:02:22]}  Bf6 {[%clk 0:02:06]} 18. Ne4 {[%clk 0:02:10]}  Be7 {[%clk 0:02:00]} 19. h4 {[%clk 0:02:09]}  h6 {[%clk 0:01:58]} 20. e3 {[%clk 0:01:58]}  f5 {[%clk 0:01:49]} 21. Ned2 {[%clk 0:01:53]}  dxe3 {[%clk 0:01:47]} 22. fxe3 {[%clk 0:01:54]}  Qxg3 {[%clk 0:01:44]} 23. Nf1 {[%clk 0:01:52]}  Qg6 {[%clk 0:01:37]} 24. e4 {[%clk 0:01:52]}  fxe4 {[%clk 0:01:30]} 25. dxe4 {[%clk 0:01:53]}  Nf6 {[%clk 0:01:24]} 26. Qf4 {[%clk 0:01:36]}  Bd6 {[%clk 0:01:18]} 27. Qf5 {[%clk 0:01:15]}  Qxf5 {[%clk 0:01:02]} 28. exf5 {[%clk 0:01:16]}  Rxe1 {[%clk 0:00:58]} 29. Nxe1 {[%clk 0:01:17]}  Rd7 {[%clk 0:00:55]} 30. Nf3 {[%clk 0:01:10]}  Bf4 {[%clk 0:00:51]} 31. Bxf6 {[%clk 0:01:06]}  gxf6 {[%clk 0:00:50]} 32. Re2 {[%clk 0:01:05]}  Ne5 {[%clk 0:00:48]} 33. Nxe5 {[%clk 0:01:02]}  Bxe5 {[%clk 0:00:48]} 34. Bxb7 {[%clk 0:00:57]}  Rxb7 {[%clk 0:00:48]} 35. Nd2 {[%clk 0:00:55]}  Rg7+ {[%clk 0:00:44]} 36. Kf1 {[%clk 0:00:55]}  Rg4 {[%clk 0:00:41]} 37. Nc4 {[%clk 0:00:54]}  Rf4+ {[%clk 0:00:31]} 38. Kg2 {[%clk 0:00:52]}  Rxf5 {[%clk 0:00:29]} 39. Nxb6 {[%clk 0:00:51]}  Rf4 {[%clk 0:00:26]} 40. Nc4 {[%clk 0:00:51]}  Rxh4 {[%clk 0:00:24]} 41. Nxa5 {[%clk 0:00:50]}  Rh2+ {[%clk 0:00:23]} 42. Kf3 {[%clk 0:00:49]}  Rh3+ {[%clk 0:00:23]} 43. Ke4 {[%clk 0:00:48]}  c4 {[%clk 0:00:23]} 44. Nxc4 {[%clk 0:00:46]}  Rxb3 {[%clk 0:00:21]} 45. Nxe5 {[%clk 0:00:44]}  fxe5 {[%clk 0:00:20]} 46. Kxe5 {[%clk 0:00:44]}  Rxa3 {[%clk 0:00:20]} 47. Kf6 {[%clk 0:00:44]}  Ra6+ {[%clk 0:00:20]} 48. Kf5 {[%clk 0:00:44]}  Kg7 {[%clk 0:00:20]} 49. Re7+ {[%clk 0:00:43]}  Kf8 {[%clk 0:00:20]} 50. Rh7 {[%clk 0:00:43]}  Kg8 {[%clk 0:00:20]} 51. Rd7 {[%clk 0:00:43]}  Kf8 {[%clk 0:00:20]} 52. Rh7 {[%clk 0:00:42]}  Kg8 {[%clk 0:00:21]} 53. Rd7 {[%clk 0:00:42]}  Kf8 {[%clk 0:00:21]} 54. Rh7 {[%clk 0:00:42]} 1/2-1/2


[Site "https://www.chess.com"]

[Event "Titled Tuesday Blitz July 18 Early 2023"]
[White "Todorovic, Bojan"]
[Black "laimis61"]
[WhiteFideId "917087"]
[WhiteElo "2428"]
[BlackElo "2255"]
[Result "1/2-1/2"]
[Round "8"]
[TimeControl "180+2"]
[Date "2023.07.18"]
[WhiteClock "0:00:22"]
[BlackClock "0:00:29"]
[Board "133"]

1. d4 {[%clk 0:02:59]}  d6 {[%clk 0:02:46]} 2. c4 {[%clk 0:02:56]}  e5 {[%clk 0:02:45]} 3. Nf3 {[%clk 0:02:56]}  e4 {[%clk 0:02:43]} 4. Ng5 {[%clk 0:02:55]}  f5 {[%clk 0:02:43]} 5. Nc3 {[%clk 0:02:48]}  Nf6 {[%clk 0:02:42]} 6. g3 {[%clk 0:02:44]}  Be7 {[%clk 0:02:42]} 7. Bg2 {[%clk 0:02:43]}  O-O {[%clk 0:02:42]} 8. O-O {[%clk 0:02:43]}  c6 {[%clk 0:02:41]} 9. d5 {[%clk 0:02:42]}  Na6 {[%clk 0:02:32]} 10. f3 {[%clk 0:02:38]}  exf3 {[%clk 0:02:26]} 11. exf3 {[%clk 0:02:38]}  Nc7 {[%clk 0:02:22]} 12. Re1 {[%clk 0:02:24]}  Nfxd5 {[%clk 0:02:05]} 13. Nxd5 {[%clk 0:02:15]}  cxd5 {[%clk 0:01:59]} 14. f4 {[%clk 0:01:56]}  Bxg5 {[%clk 0:01:54]} 15. fxg5 {[%clk 0:01:55]}  dxc4 {[%clk 0:01:53]} 16. Bf4 {[%clk 0:01:48]}  Ne6 {[%clk 0:01:34]} 17. Bd5 {[%clk 0:01:44]}  Re8 {[%clk 0:01:32]} 18. Bxc4 {[%clk 0:01:43]}  Kh8 {[%clk 0:01:31]} 19. Qxd6 {[%clk 0:01:41]}  Qxd6 {[%clk 0:01:26]} 20. Bxd6 {[%clk 0:01:41]}  Bd7 {[%clk 0:01:26]} 21. Bd5 {[%clk 0:01:37]}  Nxg5 {[%clk 0:01:23]} 22. Bxb7 {[%clk 0:01:34]}  Rxe1+ {[%clk 0:01:21]} 23. Rxe1 {[%clk 0:01:33]}  Re8 {[%clk 0:01:20]} 24. Rxe8+ {[%clk 0:01:29]}  Bxe8 {[%clk 0:01:20]} 25. Bc5 {[%clk 0:01:26]}  a5 {[%clk 0:01:19]} 26. b4 {[%clk 0:01:24]}  axb4 {[%clk 0:01:18]} 27. Bxb4 {[%clk 0:01:24]}  Ne4 {[%clk 0:01:16]} 28. Kg2 {[%clk 0:01:22]}  g6 {[%clk 0:01:13]} 29. Kf3 {[%clk 0:01:21]}  Kg7 {[%clk 0:01:12]} 30. g4 {[%clk 0:01:14]}  Kf6 {[%clk 0:01:07]} 31. h4 {[%clk 0:01:12]}  Ke5 {[%clk 0:01:04]} 32. g5 {[%clk 0:01:08]}  Bb5 {[%clk 0:01:00]} 33. Ba5 {[%clk 0:00:53]}  Nc5 {[%clk 0:00:54]} 34. Bc7+ {[%clk 0:00:51]}  Ke6 {[%clk 0:00:52]} 35. Bc8+ {[%clk 0:00:51]}  Ke7 {[%clk 0:00:51]} 36. h5 {[%clk 0:00:47]}  Bc6+ {[%clk 0:00:48]} 37. Ke2 {[%clk 0:00:44]}  gxh5 {[%clk 0:00:44]} 38. Bxf5 {[%clk 0:00:43]}  Ne6 {[%clk 0:00:44]} 39. Bxe6 {[%clk 0:00:35]}  Kxe6 {[%clk 0:00:43]} 40. Kf2 {[%clk 0:00:31]}  Kf5 {[%clk 0:00:42]} 41. Bd8 {[%clk 0:00:31]}  h4 {[%clk 0:00:42]} 42. Be7 {[%clk 0:00:27]}  Kg4 {[%clk 0:00:37]} 43. Kg1 {[%clk 0:00:22]}  Ba4 {[%clk 0:00:30]} 44. Kh2 {[%clk 0:00:21]}  Bc6 {[%clk 0:00:30]} 45. a3 {[%clk 0:00:21]}  Ba4 {[%clk 0:00:30]} 46. Bd8 {[%clk 0:00:21]}  Bc6 {[%clk 0:00:30]} 47. Be7 {[%clk 0:00:21]}  Ba4 {[%clk 0:00:29]} 48. Bd8 {[%clk 0:00:21]}  Bc6 {[%clk 0:00:29]} 49. Be7 {[%clk 0:00:22]} 1/2-1/2


[Site "https://www.chess.com"]

[Event "Titled Tuesday Blitz July 18 Early 2023"]
[White "Gabdushev, Ruslan"]
[Black "Feliz Dotel, Dewar Bienvenido"]
[WhiteFideId "4137833"]
[BlackFideId "6402801"]
[WhiteElo "2418"]
[BlackElo "2072"]
[Result "1-0"]
[Round "8"]
[TimeControl "180+2"]
[Date "2023.07.18"]
[WhiteClock "0:00:29"]
[BlackClock "0:00:00"]
[Board "134"]

1. b3 {[%clk 0:03:00]}  d5 {[%clk 0:02:58]} 2. Bb2 {[%clk 0:02:59]}  e6 {[%clk 0:02:58]} 3. e3 {[%clk 0:02:59]}  c5 {[%clk 0:02:58]} 4. f4 {[%clk 0:02:59]}  Nf6 {[%clk 0:02:58]} 5. Nf3 {[%clk 0:02:59]}  Nc6 {[%clk 0:02:58]} 6. Bb5 {[%clk 0:02:58]}  Qc7 {[%clk 0:02:52]} 7. O-O {[%clk 0:02:58]}  Bd6 {[%clk 0:02:52]} 8. d3 {[%clk 0:02:54]}  a6 {[%clk 0:02:51]} 9. Bxc6+ {[%clk 0:02:54]}  bxc6 {[%clk 0:02:52]} 10. Ne5 {[%clk 0:02:53]}  O-O {[%clk 0:02:49]} 11. c4 {[%clk 0:02:53]}  a5 {[%clk 0:02:45]} 12. Nc3 {[%clk 0:02:51]}  Bxe5 {[%clk 0:02:41]} 13. fxe5 {[%clk 0:02:51]}  Qxe5 {[%clk 0:02:42]} 14. Qf3 {[%clk 0:02:49]}  d4 {[%clk 0:02:29]} 15. Na4 {[%clk 0:02:44]}  Qxe3+ {[%clk 0:02:05]} 16. Qxe3 {[%clk 0:02:43]}  dxe3 {[%clk 0:02:06]} 17. Bxf6 {[%clk 0:02:41]}  gxf6 {[%clk 0:02:07]} 18. Rxf6 {[%clk 0:02:41]}  Rd8 {[%clk 0:01:47]} 19. Nxc5 {[%clk 0:02:39]}  a4 {[%clk 0:01:48]} 20. b4 {[%clk 0:02:08]}  a3 {[%clk 0:01:46]} 21. Rf3 {[%clk 0:02:05]}  Rb8 {[%clk 0:01:45]} 22. Rb1 {[%clk 0:02:04]}  e5 {[%clk 0:01:34]} 23. Rxe3 {[%clk 0:02:02]}  f6 {[%clk 0:01:34]} 24. Rb3 {[%clk 0:01:58]}  Kg7 {[%clk 0:01:26]} 25. Rg3+ {[%clk 0:01:55]}  Kf7 {[%clk 0:01:25]} 26. Kf2 {[%clk 0:01:54]}  Bf5 {[%clk 0:01:25]} 27. Ke3 {[%clk 0:01:49]}  Bg6 {[%clk 0:01:20]} 28. Rf3 {[%clk 0:01:35]}  Ke7 {[%clk 0:01:08]} 29. Rxa3 {[%clk 0:01:28]}  f5 {[%clk 0:00:45]} 30. Ra7+ {[%clk 0:01:23]}  Kf6 {[%clk 0:00:45]} 31. Nd7+ {[%clk 0:01:20]}  Rxd7 {[%clk 0:00:46]} 32. Rxd7 {[%clk 0:01:19]}  Rxb4 {[%clk 0:00:45]} 33. Rd6+ {[%clk 0:01:19]}  Ke7 {[%clk 0:00:45]} 34. Rxc6 {[%clk 0:01:19]}  Rb2 {[%clk 0:00:46]} 35. g3 {[%clk 0:01:05]}  Rxh2 {[%clk 0:00:45]} 36. a4 {[%clk 0:01:04]}  Ra2 {[%clk 0:00:45]} 37. Ra6 {[%clk 0:01:03]}  Kf7 {[%clk 0:00:37]} 38. Rf2 {[%clk 0:01:00]}  Ra3 {[%clk 0:00:24]} 39. c5 {[%clk 0:00:49]}  h5 {[%clk 0:00:23]} 40. Rb2 {[%clk 0:00:40]}  f4+ {[%clk 0:00:18]} 41. gxf4 {[%clk 0:00:36]}  exf4+ {[%clk 0:00:04]} 42. Kxf4 {[%clk 0:00:31]}  Kg7 {[%clk 0:00:02]} 43. Rb7+ {[%clk 0:00:29]}  Kh6 {[%clk 0:00:00]} 44. Rbb6 {[%clk 0:00:29]} 1-0


[Site "https://www.chess.com"]

[Event "Titled Tuesday Blitz July 18 Early 2023"]
[White "Dwilewicz, Katarzyna"]
[Black "Souleidis, Georgios"]
[WhiteFideId "1148486"]
[BlackFideId "4206827"]
[WhiteElo "2327"]
[BlackElo "2542"]
[Result "0-1"]
[Round "8"]
[TimeControl "180+2"]
[Date "2023.07.18"]
[WhiteClock "0:00:04"]
[BlackClock "0:00:47"]
[Board "137"]

1. e4 {[%clk 0:02:24]}  c5 {[%clk 0:02:54]} 2. Nf3 {[%clk 0:02:24]}  e6 {[%clk 0:02:54]} 3. g3 {[%clk 0:02:24]}  Nc6 {[%clk 0:02:53]} 4. Bg2 {[%clk 0:02:25]}  Nf6 {[%clk 0:02:53]} 5. Nc3 {[%clk 0:02:22]}  e5 {[%clk 0:02:44]} 6. O-O {[%clk 0:02:21]}  d6 {[%clk 0:02:45]} 7. Re1 {[%clk 0:02:13]}  Be7 {[%clk 0:02:45]} 8. h3 {[%clk 0:02:10]}  O-O {[%clk 0:02:45]} 9. d3 {[%clk 0:02:05]}  h6 {[%clk 0:02:45]} 10. Nd5 {[%clk 0:02:00]}  Nxd5 {[%clk 0:02:21]} 11. exd5 {[%clk 0:02:00]}  Nd4 {[%clk 0:02:22]} 12. c3 {[%clk 0:01:57]}  Nxf3+ {[%clk 0:02:21]} 13. Bxf3 {[%clk 0:01:44]}  Bg5 {[%clk 0:02:14]} 14. h4 {[%clk 0:01:37]}  Bxc1 {[%clk 0:02:13]} 15. Rxc1 {[%clk 0:01:35]}  f5 {[%clk 0:02:14]} 16. Kg2 {[%clk 0:01:27]}  Qf6 {[%clk 0:02:12]} 17. Rc2 {[%clk 0:01:24]}  Bd7 {[%clk 0:02:11]} 18. a3 {[%clk 0:01:24]}  Ba4 {[%clk 0:02:09]} 19. b4 {[%clk 0:01:18]}  Rac8 {[%clk 0:02:01]} 20. Qc1 {[%clk 0:01:15]}  Bxc2 {[%clk 0:02:01]} 21. Qxc2 {[%clk 0:01:15]}  cxb4 {[%clk 0:02:01]} 22. axb4 {[%clk 0:01:15]}  e4 {[%clk 0:01:53]} 23. dxe4 {[%clk 0:01:15]}  Rxc3 {[%clk 0:01:53]} 24. Qe2 {[%clk 0:00:52]}  Re8 {[%clk 0:01:15]} 25. Qb5 {[%clk 0:00:33]}  Re7 {[%clk 0:01:09]} 26. Qa5 {[%clk 0:00:22]}  b6 {[%clk 0:01:00]} 27. Qb5 {[%clk 0:00:18]}  fxe4 {[%clk 0:00:50]} 28. Bxe4 {[%clk 0:00:12]}  Rxe4 {[%clk 0:00:48]} 29. Rxe4 {[%clk 0:00:04]}  Qf3+ {[%clk 0:00:47]} 0-1


[Site "https://www.chess.com"]

[Event "Titled Tuesday Blitz July 18 Early 2023"]
[White "Hoffmann, Asa"]
[Black "Luxama, Jacques Muller"]
[WhiteFideId "2001470"]
[BlackFideId "11900113"]
[WhiteElo "2391"]
[BlackElo "2256"]
[Result "1-0"]
[Round "8"]
[TimeControl "180+2"]
[Date "2023.07.18"]
[WhiteClock "0:00:59"]
[BlackClock "0:00:17"]
[Board "143"]

1. d4 {[%clk 0:02:59]}  Nf6 {[%clk 0:02:50]} 2. Bg5 {[%clk 0:02:58]}  c5 {[%clk 0:02:46]} 3. d5 {[%clk 0:02:57]}  d6 {[%clk 0:02:41]} 4. Nc3 {[%clk 0:02:57]}  e6 {[%clk 0:02:39]} 5. e4 {[%clk 0:02:56]}  exd5 {[%clk 0:02:39]} 6. exd5 {[%clk 0:02:56]}  h6 {[%clk 0:02:37]} 7. Bh4 {[%clk 0:02:56]}  Be7 {[%clk 0:02:37]} 8. Be2 {[%clk 0:02:56]}  O-O {[%clk 0:02:37]} 9. Nf3 {[%clk 0:02:56]}  Re8 {[%clk 0:02:32]} 10. O-O {[%clk 0:02:56]}  Nh5 {[%clk 0:02:23]} 11. Bxe7 {[%clk 0:02:50]}  Rxe7 {[%clk 0:02:18]} 12. Re1 {[%clk 0:02:50]}  Nd7 {[%clk 0:02:13]} 13. Qd2 {[%clk 0:02:48]}  Nhf6 {[%clk 0:02:02]} 14. a4 {[%clk 0:02:44]}  a6 {[%clk 0:02:01]} 15. Qf4 {[%clk 0:02:39]}  Nf8 {[%clk 0:02:00]} 16. Bd3 {[%clk 0:02:35]}  Bg4 {[%clk 0:01:53]} 17. h3 {[%clk 0:02:32]}  Bh5 {[%clk 0:01:50]} 18. Rxe7 {[%clk 0:02:28]}  Qxe7 {[%clk 0:01:49]} 19. Re1 {[%clk 0:02:28]}  Qc7 {[%clk 0:01:44]} 20. Nh4 {[%clk 0:02:22]}  N8d7 {[%clk 0:01:24]} 21. Nf5 {[%clk 0:02:19]}  Ne5 {[%clk 0:01:18]} 22. Nxh6+ {[%clk 0:02:17]}  Kf8 {[%clk 0:01:16]} 23. Nf5 {[%clk 0:02:13]}  Bg6 {[%clk 0:01:12]} 24. Qg5 {[%clk 0:01:54]}  Nxd3 {[%clk 0:01:07]} 25. cxd3 {[%clk 0:01:54]}  Bxf5 {[%clk 0:01:03]} 26. Qxf5 {[%clk 0:01:53]}  Qb6 {[%clk 0:00:58]} 27. Re2 {[%clk 0:01:42]}  Re8 {[%clk 0:00:54]} 28. Qf3 {[%clk 0:01:31]}  Qb4 {[%clk 0:00:48]} 29. Rxe8+ {[%clk 0:01:26]}  Nxe8 {[%clk 0:00:45]} 30. Qe2 {[%clk 0:01:24]}  b5 {[%clk 0:00:43]} 31. axb5 {[%clk 0:01:24]}  axb5 {[%clk 0:00:37]} 32. Ne4 {[%clk 0:01:22]}  Qd4 {[%clk 0:00:31]} 33. Qh5 {[%clk 0:01:14]}  Qxd3 {[%clk 0:00:23]} 34. Ng3 {[%clk 0:01:05]}  Nf6 {[%clk 0:00:19]} 35. Qh8+ {[%clk 0:01:02]}  Ng8 {[%clk 0:00:18]} 36. Qh4 {[%clk 0:01:00]}  Qxd5 {[%clk 0:00:17]} 37. Qd8# {[%clk 0:00:59]} 1-0


[Site "https://www.chess.com"]

[Event "Titled Tuesday Blitz July 18 Early 2023"]
[White "Slovineanu, Viacheslav"]
[Black "Thiel, Thomas"]
[WhiteFideId "13900510"]
[BlackFideId "4615964"]
[WhiteElo "2376"]
[BlackElo "2246"]
[Result "0-1"]
[Round "8"]
[TimeControl "180+2"]
[Date "2023.07.18"]
[WhiteClock "0:00:45"]
[BlackClock "0:01:10"]
[Board "144"]

1. d4 {[%clk 0:02:57]}  d5 {[%clk 0:02:59]} 2. Nf3 {[%clk 0:02:57]}  Nf6 {[%clk 0:02:56]} 3. c4 {[%clk 0:02:56]}  dxc4 {[%clk 0:02:55]} 4. e3 {[%clk 0:02:57]}  Bg4 {[%clk 0:02:53]} 5. Bxc4 {[%clk 0:02:56]}  e6 {[%clk 0:02:53]} 6. Nbd2 {[%clk 0:02:54]}  Nc6 {[%clk 0:02:43]} 7. O-O {[%clk 0:02:51]}  Bd6 {[%clk 0:02:40]} 8. a3 {[%clk 0:02:43]}  O-O {[%clk 0:02:37]} 9. b4 {[%clk 0:02:41]}  e5 {[%clk 0:02:37]} 10. d5 {[%clk 0:02:37]}  Ne7 {[%clk 0:02:34]} 11. e4 {[%clk 0:02:36]}  c6 {[%clk 0:02:28]} 12. dxc6 {[%clk 0:02:22]}  Nxc6 {[%clk 0:02:29]} 13. Bb2 {[%clk 0:02:20]}  Re8 {[%clk 0:02:17]} 14. Qb3 {[%clk 0:02:16]}  Qe7 {[%clk 0:02:15]} 15. Rfe1 {[%clk 0:02:04]}  a5 {[%clk 0:02:13]} 16. b5 {[%clk 0:01:50]}  a4 {[%clk 0:02:13]} 17. Qa2 {[%clk 0:01:50]}  Na5 {[%clk 0:02:12]} 18. Bf1 {[%clk 0:01:41]}  Be6 {[%clk 0:02:10]} 19. Qb1 {[%clk 0:01:35]}  Nb3 {[%clk 0:02:08]} 20. Nxb3 {[%clk 0:01:34]}  Bxb3 {[%clk 0:02:08]} 21. Nd2 {[%clk 0:01:28]}  Be6 {[%clk 0:02:02]} 22. Nc4 {[%clk 0:01:28]}  Bb8 {[%clk 0:01:58]} 23. Nxe5 {[%clk 0:01:23]}  Bb3 {[%clk 0:01:43]} 24. Nf3 {[%clk 0:01:19]}  Nxe4 {[%clk 0:01:31]} 25. Nd2 {[%clk 0:01:08]}  Bxh2+ {[%clk 0:01:27]} 26. Kh1 {[%clk 0:00:58]}  Qh4 {[%clk 0:01:12]} 27. Rxe4 {[%clk 0:00:45]}  Bf4+ {[%clk 0:01:10]} 0-1


[Site "https://www.chess.com"]